Cogmind - Beta 10.2 @@@ ROGUE MODE // 2022.01.09 @ 22:28:23 Player: Okkudo Result: Destroyed by S-10 Pest with Light Assault Rifle Performance ------------- Evolutions (1) 500 Regions Visited (3) 600 Robots Destroyed (12) 60 Value Destroyed (197) 197 Prototype IDs (0) 0 Alien Tech Used (0) 0 Bonus (0) 0 TOTAL SCORE: 1357 Bonus ------- None Cogmind --------- Core Integrity 0/400 Matter 289/300 Energy 99/100 System Corruption 0% Temperature Cool (0) Movement Core (100) Ox1 Location -9/Materials Parts ------- > --- POWER (1) -------- (None) > --- PROPULSION (3) --- (None) > --- UTILITY (3) ------ Small Storage Unit > --- WEAPON (2) ------- (None) > --- INVENTORY (6) ---- Ion Engine Light Ion Engine Light Ion Engine Peak State ------------ > --- POWER ------------ Ion Engine > --- PROPULSION ------- Light Treads Light Treads > --- UTILITY ---------- Small Storage Unit > --- WEAPON ----------- Small Laser Assault Rifle > --- INVENTORY -------- Light Ion Engine Light Assault Rifle [Rating: 6] Favorites ----------- Power Ion Engine Engine Ion Engine Power Core Light Nuclear Core Propulsion Light Treads Treads Light Treads Utility Small Storage Unit Storage Small Storage Unit Weapon Assault Rifle Energy Gun Small Laser Ballistic Gun Assault Rifle Special Weapon Mining Laser Build | -11 -10 -10 -9 ------- Run | Scr Mat Min Mat Slots Evolved 2 | . . . 2 Power . | . . . . Propulsion 1 | . . . 1 Utility 1 | . . . 1 Weapon . | . . . . Parts Attached 10 | 5 1 2 2 Power 3 | 1 . 1 1 Engine 2 | 1 . 1 . Core 1 | . . . 1 Reactor . | . . . . Propulsion 2 | 2 . . . Treads 2 | 2 . . . Leg . | . . . . Wheel . | . . . . Hover . | . . . . Flight . | . . . . Utility 1 | 1 . . . Device . | . . . . Storage 1 | 1 . . . Processor . | . . . . Hackware . | . . . . Protection . | . . . . Artifact . | . . . . Weapon 4 | 1 1 1 1 Energy Gun 1 | . 1 . . Energy Cannon . | . . . . Ballistic Gun 2 | 1 . 1 . Ballistic Cannon . | . . . . Launcher . | . . . . Special Weapon 1 | . . . 1 Impact Weapon . | . . . . Slashing Weapon . | . . . . Piercing Weapon . | . . . . Special Melee Weapon . | . . . . Unidentified Prototypes . | . . . . Parts Lost 7 | . . 3 4 Power 1 | . . . 1 Propulsion 2 | . . 2 . Utility . | . . . . Weapon 4 | . . 1 3 Highest Loss Streak 4 | . . 1 4 Average Slot Usage (%) 74 | . 85 75 34 Engine 12 | . 14 14 . Treads 21 | . 28 21 . Storage 13 | . 14 14 11 Energy Gun 9 | . 14 8 . Ballistic Gun 15 | . 14 15 14 Naked Turns . | . . . . Heaviest Build 12 | 11 12 12 12 Greatest Support 40 | 40 40 40 3 Greatest Overweight (x) 3 | . . 3 3 Average Overweight (x) . | . . . 2 Largest Inventory Capacity 6 | 6 6 6 6 Average Capacity 5 | 5 6 6 6 Most Carried 4 | 4 3 4 4 Average Carried 3 | 2 2 3 3 Final Capacity 6 | 6 6 6 6 Final Carried 4 | 3 3 4 3 Class Distribution -------------------- 100% | Mutant Dominant Class ---------------- Mutant | -10/Materials Mutant | -10/Mines Mutant | -9/Materials Resources | -11 -10 -10 -9 ----------- Run | Scr Mat Min Mat Matter Collected 422 | 262 . 160 . Remotely . | . . . . Salvage Created 328 | 61 . 267 . Parts 20 | 3 . 16 1 Haulers Intercepted . | . . . . Recyclers Shooed . | . . . . Parts Field Recycled . | . . . . Retrieved Matter . | . . . . Parts Self-Destructed . | . . . . Prevented . | . . . . Kills | -11 -10 -10 -9 ------- Run | Scr Mat Min Mat Combat Hostiles Destroyed 10 | . . 9 1 Guns 9 | . . 9 . Cannons 1 | . . . 1 Classes Destroyed 3 | 1 . 2 . Recycler 2 | 1 . 1 . Swarmer 7 | . . 6 1 Grunt 3 | . . 3 . Best Kill Streak 3 | 1 . 3 1 Combat Bots Only 3 | . . 3 1 Max Kills in Single Turn 2 | 1 . 2 1 Gunslinging 1 | . . 1 . Exploded . | . . . . Melee . | . . . . Uniques/NPCs Destroyed . | . . . . Combat | -11 -10 -10 -9 -------- Run | Scr Mat Min Mat Damage Taken 1277 | . . 684 593 Core 522 | . . 122 400 Absorbed by Shields . | . . . . Core Remaining (%) 75 | 100 . 51 . Volleys Fired 55 | 4 4 43 4 Largest 2 | 1 2 2 2 Hottest 100 | 20 60 60 100 Shots Fired 81 | 4 6 65 6 Gun 80 | 4 6 65 5 Cannon . | . . . . Launcher . | . . . . Special 1 | . . . 1 Kinetic 63 | 4 4 50 5 Thermal 18 | . 2 15 1 Explosive . | . . . . Electromagnetic . | . . . . Robot Hit Streak 9 | 4 2 9 2 Robot Miss Streak 4 | . 2 3 4 Penetration Max . | . . . . Secondary Targets 3 | . . 3 . Max Gunslinging Chain 1 | . . 1 . Shots Hit Robots 47 | 4 3 38 2 Core Hits 17 | 2 . 14 1 Critical Hits . | . . . . Critical Kills . | . . . . Critical Parts Destroyed . | . . . . Melee Attacks . | . . . . Impact . | . . . . Slashing . | . . . . Piercing . | . . . . Sneak Attacks . | . . . . Combat Hostiles . | . . . . Follow-up Attacks . | . . . . Damage Inflicted 553 | 51 11 436 55 Guns 529 | 51 11 436 31 Cannons . | . . . . Explosions . | . . . . Melee . | . . . . Ramming . | . . . . Kinetic 453 | 51 . 371 31 Thermal 100 | . 11 65 24 Explosive . | . . . . Electromagnetic . | . . . . Impact . | . . . . Slashing . | . . . . Piercing . | . . . . Highest Corruption . | . . . . Average Corruption . | . . . . Corruption Purged . | . . . . Overload Shots . | . . . . Overflow Damage . | . . . . Projectiles . | . . . . Explosions . | . . . . Melee . | . . . . Knockbacks . | . . . . Impact . | . . . . Kinetic . | . . . . Secondary . | . . . . Self-Inflicted Damage . | . . . . Shots . | . . . . Rammed 1 | . . 1 . Targets Rammed 1 | . . 1 . Kicked . | . . . . Crushed . | . . . . Highest Temperature 12 | . . 12 8 Average Temperature 8 | . . 8 5 Received Heat Transfer 327 | . . 228 99 Siege Activations . | . . . . Robots Corrupted . | . . . . Combat Hostiles . | . . . . Parts Fried . | . . . . Impact Corruptions . | . . . . Robots Melted . | . . . . Combat Hostiles . | . . . . Parts Melted . | . . . . Heat Transferred 225 | . 25 150 50 Parts Sabotaged . | . . . . Parts Stolen . | . . . . Parts Stripped . | . . . . Power Chain Reactions . | . . . . Missiles Intercepted . | . . . . Alert | -11 -10 -10 -9 ------- Run | Scr Mat Min Mat Peak Influence 167 | 5 32 167 34 Initial 19 | . 3 12 19 Average 64 | 4 18 100 21 Maximum Alert Level . | . . . . Low Security (%) 100 | 100 100 100 100 Level 1 . | . . . . Level 2 . | . . . . Level 3 . | . . . . Level 4 . | . . . . Level 5 . | . . . . High Security . | . . . . Max Security . | . . . . Squads Dispatched . | . . . . Investigation . | . . . . Extermination . | . . . . Reinforcement . | . . . . Assault . | . . . . Garrison . | . . . . Intercept . | . . . . Construction Impeded . | . . . . Haulers Reinforced . | . . . . Stealth | -11 -10 -10 -9 --------- Run | Scr Mat Min Mat Distress Signals . | . . . . Communications Jammed . | . . . . Distress Signals . | . . . . Times Spotted 17 | . 2 10 5 Peak Tracking Total 7 | . 1 7 5 Tactical Retreats 1 | . . 1 . Traps | -11 -10 -10 -9 ------- Run | Scr Mat Min Mat Traps Triggered . | . . . . Indirectly . | . . . . Trap Hack Attempts . | . . . . Triggered . | . . . . Disarmed . | . . . . Reprogrammed . | . . . . Reused . | . . . . Traps Extracted . | . . . . Installed . | . . . . Triggered . | . . . . Machines | -11 -10 -10 -9 ---------- Run | Scr Mat Min Mat Machines Disabled . | . . . . Max in Single Turn . | . . . . Machines Sabotaged . | . . . . Garrisons Compromised . | . . . . Overloaded Fab Kills . | . . . . Fab Network Shutdowns . | . . . . Hacking | -11 -10 -10 -9 --------- Run | Scr Mat Min Mat Machines Accessed 2 | . 2 . . Terminals 2 | . 2 . . Fabricators . | . . . . Repair Stations . | . . . . Recycling Units . | . . . . Scanalyzers . | . . . . Garrison Access . | . . . . Total Hacks 6 | . 6 . . Successful 2 | . 2 . . Failed 4 | . 4 . . Catastrophic 1 | . 1 . . Database Lockouts . | . . . . Manual . | . . . . Terminals 6 | . 6 . . Fabricators . | . . . . Repair Stations . | . . . . Recycling Units . | . . . . Scanalyzers . | . . . . Garrison Access . | . . . . Terminal Hacks 2 | . 2 . . Patrol Status 1 | . 1 . . Zone Layout 1 | . 1 . . Fabricator Hacks . | . . . . Repair Station Hacks . | . . . . Recycling Unit Hacks . | . . . . Scanalyzer . | . . . . Garrison Access Hacks . | . . . . Unauthorized Hacks . | . . . . Terminals . | . . . . Fabricators . | . . . . Repair Stations . | . . . . Recycling Units . | . . . . Scanalyzers . | . . . . Garrison Access . | . . . . Data Cores Recovered . | . . . . Used . | . . . . Hacking Detections 2 | . 2 . . Full Trace Events 2 | . 2 . . Feedback Events . | . . . . Feedback Blocked . | . . . . Robot Schematics Acquired . | . . . . Robots Built . | . . . . Matter . | . . . . Time . | . . . . Total Robot Build Rating . | . . . . Part Schematics Acquired . | . . . . Parts Built . | . . . . Matter . | . . . . Time . | . . . . Total Part Build Rating . | . . . . Parts Repaired . | . . . . Time . | . . . . Parts Recycled . | . . . . Recycled Matter . | . . . . Retrieved Matter . | . . . . Retrieved Components . | . . . . Parts Scanalyzed . | . . . . Part Schematics Acquired . | . . . . Parts Damaged . | . . . . Bothacking | -11 -10 -10 -9 ------------ Run | Scr Mat Min Mat Used RIF Installer . | . . . . Robots Hacked . | . . . . Non-combat . | . . . . Combat . | . . . . Robot Hacks Applied . | . . . . Relay Couplers Released . | . . . . Robots Rewired . | . . . . Allies Hacked . | . . . . Hacks Repelled . | . . . . Allies | -11 -10 -10 -9 -------- Run | Scr Mat Min Mat Total Allies . | . . . . Largest Group . | . . . . Highest-Rated Group . | . . . . Highest-Rated Ally . | . . . . Total Orders . | . . . . Ally Attacks . | . . . . Total Damage . | . . . . Kills . | . . . . Allies Corrupted . | . . . . Allies Melted . | . . . . Intel | -11 -10 -10 -9 ------- Run | Scr Mat Min Mat Robot Analysis Total . | . . . . Derelict Logs Recovered 1 | . . 1 . Drone Launches . | . . . . Drone Recoveries . | . . . . Exploration | -11 -10 -10 -9 ------------- Run | Scr Mat Min Mat Turns Passed 1121 | 74 323 637 87 Spaces Moved 612 | 50 195 320 47 Core 103 | 23 . 33 47 Treads 509 | 27 195 287 . Legs . | . . . . Wheels . | . . . . Hover . | . . . . Flight . | . . . . Fastest Speed 50 | 50 160 160 100 Average Speed 157 | 109 160 164 155 Slowest Speed 200 | 160 160 200 200 Overloaded Moves . | . . . . Propulsion Burnouts . | . . . . Robots Hopped . | . . . . Cave-ins Triggered . | . . . . Exploration Rate (%) 29 | 3 30 75 9 Regions Visited 3 Branch Regions 1 Pre-discovered Areas 1 | . . 1 . Known Exits Taken . | . . . . Unknown Exits Taken 3 | 1 1 1 . Scrap Searched 1 | . . 1 . Spaces Dug . | . . . . Terrain Destroyed . | . . . . Melee . | . . . . Projectile . | . . . . AOE . | . . . . Terrain Rammed . | . . . . Walls Destroyed . | . . . . Machines Disabled . | . . . . Actions | -11 -10 -10 -9 --------- Run | Scr Mat Min Mat Total 685 | 65 200 367 53 Wait . | . . . . Move 609 | 49 194 319 47 Hop . | . . . . Pick Up 10 | 7 1 2 . Fast Attach 1 | 1 . . . Attach 7 | 4 1 1 1 Detach . | . . . . Swap 2 | . . 1 1 Drop . | . . . . Fire 55 | 4 4 43 4 Melee . | . . . . Ram 1 | . . 1 . Kick . | . . . . Crush . | . . . . Escape Stasis . | . . . . Rewire . | . . . . Trap . | . . . . Miscellaneous . | . . . . Route ------- -11/Scrapyard -10/Materials (discovered 2 exits: [Mat] / [*Min]) -10/Mines -9/Materials (discovered 1 exit: [*Sto]) History --------- Turn | Location | Event 5 | -11/Scrapyard | Discovered new exit (range 15) 75 | -11/Scrapyard | Entered Materials 130 | -10/Materials | Discovered new exit (range 13) 256 | -10/Materials | Discovered new exit (range 10) 305 | -10/Materials | Build established: Mutant 398 | -10/Materials | Entered Mines 399 | -10/Mines | Assembled infested the area 404 | -10/Mines | Assisted by a Guerilla fighting off Assembled 548 | -10/Mines | Learned location of Zion (-6) 1001 | -10/Mines | Discovered new exit (range 8) 1035 | -10/Mines | Entered Materials 1035 | -9/Materials | Evolved 2 slots: Propulsion x1, Utility x1 1104 | -9/Materials | Core integrity fell below 50% 1106 | -9/Materials | Discovered new exit (range 16) 1112 | -9/Materials | Core integrity fell below 20% 1122 | -9/Materials | Destroyed by S-10 Pest with Light Assault Rifle Last Messages --------------- 00946_ R-06 Scavenger collects Com. Wheel. 00967_ G-47 Trooper destroyed. 00972_ Acquired 50 matter. 00974_ K-01 Serf collects debris. 00976_ Acquired Lgt. Nuclear Core. 00978_ K-01 Serf collects debris. 01001_ EXIT=FOUND 01008_ K-01 Serf collects debris. 01029_ Slammed into K-01 Serf. 01033_ Acquired 1 matter. PARAMETERS=PROPULSION_1,UTILITY_1 LOCATION=UNKNOWN GOAL=ESCAPE 01090_ Lgt. Nuclear Core destroyed. 01092_ Lgt. Assault Rifle destroyed. 01096_ Assault Rifle destroyed. 01098_ S-10 Pest destroyed. 01100_ Mining Laser destroyed. 01106_ EXIT=FOUND 01111_ R-06 Scavenger collects Flight Unit. Map ----- +----------------------------------------------------+ | ??????????# #?????????????????????????? | | ??????????# #?????????????????????????? | | ??????????# #?????????????????????????? | | ??????????# #???####??????????????????? | | ??????????# #?? ""??????????????????? | | ??????????# #? ""R"?????????????????? | | ???######## # "" " #???????????????? | | ???# # #???????????????? | | ???# + #???????????????? | | ???# # #???????????????? | | ???# #### #?? #???????????????? | | ???# #??# #???? #???????????????? | | ???# #??# #??????####???????????????? | | ???# #??# #?????????????????????????? | | ???# #??# #?????????????????????????? | | ???# #??# #?????????????????????????? | | ???# #?## ##????????????????????????? | | ???# #?# ##########+##+#??????????? | | ???# #?# #??????????? | | ???# #?# +??????????? | | ???# #?# #??????????? | | ???# #?# ###s#########????????????? | | ???# #?### ### #??????????????? | | ???# #???# #?# #??????????????? | | ???# #???# #?# """ #??????????????? | | ???# #???# ??#@""""" #??????????????? | | ???# #???# ??# """"" #??????????????? | | ???# #??? ??# """"" #??????????????? | | ???#####???